fUST/lending_fUST_20250831
["ID","MTS","AMOUNT","RATE_DAILY","PERIOD"]
[382349967,1756583804678,-394.12274684,0.00019173,2]
[382349968,1756583804698,-105.87725316,0.00019173,2]
[382349969,1756583804708,-394.12274684,0.00019173,2]
[382349970,1756583804720,-105.87725316,0.00019173,2]
[382349971,1756583804729,-160.108,0.00019177,2]
[382349972,1756583804739,-234.01474684,0.00019177,2]
[382349973,1756583804750,-265.98525316,0.00019177,2]
[382349974,1756583804760,-234.01474684,0.00019177,2]
[382349975,1756583804792,-265.98525316,0.00019177,2]
[382349976,1756583804829,-500.0,0.00019177,2]
[382349977,1756583804858,-414.62400697,0.00019177,2]
[382349978,1756583804891,-415.66044999,0.00019177,2]
[382349979,1756583804922,-500.0,0.00019177,2]
[382349980,1756583804941,-500.0,0.00019178,2]
[382349981,1756583804953,-500.0,0.00019178,2]
[382349982,1756583804964,-500.0,0.00019178,2]
[382349983,1756583804981,-500.0,0.00019178,2]
[382349984,1756583805002,-211.76450632,0.00019178,2]
[382349985,1756583805090,-2294.52213055,0.00019178,2]
[382349986,1756583805112,-265.98525316,0.00019178,2]
[382349987,1756583805128,-500.0,0.00019178,2]
[382349988,1756583805147,-414.62400697,0.00019178,2]
[382349989,1756583805188,-4230.35647877,0.00019178,2]
[382349990,1756583805217,-480.0,0.00019178,2]
[382349991,1756583805248,-99.29704246,0.00019178,2]
[382349992,1756583805260,-380.70295754,0.00019178,2]
[382349993,1756583805270,-34.95749245,0.00019178,2]
[382349994,1756583805285,-500.0,0.00019178,2]
[382349995,1756583805300,-465.04250755,0.00019178,2]
[382349996,1756583805309,-480.0,0.00019178,2]
[382349997,1756583805318,-480.0,0.00019178,2]
[382349998,1756583805327,-480.0,0.00019178,2]
[382349999,1756583805337,-480.0,0.00019178,2]
[382350000,1756583805346,-480.0,0.00019178,2]
[382350001,1756583805355,-423.32028407,0.00019178,2]
[382350002,1756583805365,-558.2,0.00019178,2]
[382350003,1756583805374,-480.0,0.00019178,2]
[382350004,1756583805383,-480.0,0.00019178,2]
[382350005,1756583805392,-480.0,0.00019178,2]
[382350006,1756583805403,-480.0,0.00019178,2]
[382350007,1756583805413,-40.90778814,0.00019178,2]
[382350008,1756583805458,-439.09221186,0.00019178,2]
[382350009,1756583805489,-1104.11,0.00019178,2]
[382350010,1756583805518,-954.16,0.00019178,2]
[382350011,1756583805552,-480.0,0.00019178,2]
[382350012,1756583805581,-489.53325782,0.00019178,2]
[382350013,1756583805609,-571.3,0.00019178,2]
[382350014,1756583805788,-480.65029271,0.00019178,2]
[382350015,1756583805816,-480.0,0.00019178,2]
[382350016,1756583805841,-480.0,0.00019178,2]
[382350017,1756583805851,-518.78,0.00019178,2]
[382350018,1756583805861,-480.0,0.00019178,2]
[382350019,1756583805871,-714.7,0.00019178,2]
[382350020,1756583805880,-516.34,0.00019178,2]
[382350021,1756583805890,-480.0,0.00019178,2]
[382350022,1756583805899,-1371.65,0.00019178,2]
[382350023,1756583805908,-480.0,0.00019178,2]
[382350024,1756583805918,-480.0,0.00019178,2]
[382350025,1756583805928,-480.0,0.00019178,2]
[382350026,1756583805937,-480.0,0.00019178,2]
[382350027,1756583805946,-480.0,0.00019178,2]
[382350028,1756583805955,-480.0,0.00019178,2]
[382350029,1756583805964,-264.01786945,0.00019178,2]
[382350030,1756583805996,-4230.35647877,0.00019178,2]
[382350031,1756583806007,-480.0,0.00019178,2]
[382350032,1756583806018,-480.0,0.00019178,2]
[382350033,1756583806126,-216.25802849,0.00019165,2]
[382350034,1756583806135,-222.83418337,0.00019178,2]
[382350035,1756583806156,-1104.11,0.00019178,2]
[382350036,1756583806167,-954.16,0.00019178,2]
[382350037,1756583806194,-480.0,0.00019178,2]
[382350038,1756583806213,-489.53325782,0.00019178,2]
[382350039,1756583806231,-571.3,0.00019178,2]
[382350040,1756583806242,-480.65029271,0.00019178,2]
[382350041,1756583806293,-480.0,0.00019178,2]
[382350042,1756583806304,-2.31847522,0.00019178,2]
[382350043,1756583806320,-9314.28705256,0.00019178,2]
[382350044,1756583806329,-685.72294744,0.00019178,2]
[382350045,1756583806365,-642.88705256,0.00019178,2]
[382350046,1756583806375,-480.0,0.00019178,2]
[382350047,1756583806385,-480.0,0.00019178,2]
[382350048,1756583806394,-480.0,0.00019178,2]
[382350049,1756583806404,-634.65,0.00019178,2]
[382350050,1756583806413,-480.0,0.00019178,2]
[382350051,1756583806423,-480.0,0.00019178,2]
[382350052,1756583806432,-480.0,0.00019178,2]
[382350053,1756583806441,-480.0,0.00019178,2]
[382350054,1756583806451,-480.0,0.00019178,2]
[382350055,1756583806460,-607.65,0.00019178,2]
[382350056,1756583806470,-587.68,0.00019178,2]
[382350057,1756583806480,-480.0,0.00019178,2]
[382350058,1756583806489,-480.0,0.00019178,2]
[382350059,1756583806499,-701.55,0.00019178,2]
[382350060,1756583806508,-480.0,0.00019178,2]
[382350061,1756583806517,-480.0,0.00019178,2]
[382350062,1756583806534,-788.75,0.00019178,2]
[382350063,1756583806543,-276.84294744,0.00019178,2]
[382350064,1756583806560,-1409.90705256,0.00019178,2]
[382350065,1756583806569,-485.01,0.00019178,2]
[382350066,1756583806579,-480.0,0.00019178,2]
[382350067,1756583806588,-480.0,0.00019178,2]
[382350068,1756583806599,-480.0,0.00019178,2]
[382350069,1756583806610,-687.21,0.00019178,2]
[382350070,1756583806620,-667.81,0.00019178,2]
[382350071,1756583806630,-480.0,0.00019178,2]
[382350072,1756583806641,-715.21,0.00019178,2]
[382350073,1756583806651,-480.0,0.00019178,2]
[382350074,1756583806663,-480.0,0.00019178,2]
[382350075,1756583806672,-703.19,0.00019178,2]
[382350076,1756583806682,-480.0,0.00019178,2]
[382350077,1756583806692,-480.0,0.00019178,2]
[382350078,1756583806703,-1491.67294744,0.00019178,2]
[382350079,1756583827131,5000.0,0.000188,2]
[382350080,1756583835751,5000.0,0.000188,2]
[382350081,1756583850718,5000.0,0.000188,2]
[382350082,1756583858475,5000.0,0.000188,2]
[382350083,1756583873390,5000.0,0.000188,2]
[382350084,1756583881352,5000.0,0.000188,2]
[382350085,1756583896167,5000.0,0.000188,2]
[382350086,1756583904575,5000.0,0.000188,2]
[382350087,1756583919598,5000.0,0.000188,2]
[382350088,1756583921744,435.087666,0.00018176,2]
[382350089,1756583927385,5000.0,0.000188,2]
[382350090,1756583942848,5000.0,0.000188,2]
[382350091,1756583950068,5000.0,0.000188,2]
[382350092,1756583965433,5000.0,0.000188,2]
[382350093,1756583973255,5000.0,0.000188,2]
[382350097,1756583992533,5000.0,0.000188,2]
[382350099,1756584000702,5000.0,0.000188,2]
[382350102,1756584009296,5000.0,0.000188,2]
[382350104,1756584017780,5000.0,0.000188,2]
[382350107,1756584025565,5000.0,0.000188,2]
[382350108,1756584033716,5000.0,0.000188,2]
[382350109,1756584041619,5000.0,0.000188,2]
[382350111,1756584050093,5000.0,0.000188,2]
[382350114,1756584058606,5000.0,0.000188,2]
[382350116,1756584065712,717.0231899,0.00018153,2]
[382350117,1756584066676,2838.6941269,0.000188,2]
[382350118,1756584075519,-358.65359984,0.00018612,2]
[382350119,1756584079330,-383.92466213,0.00018612,2]
[382350120,1756584081032,-153.9573891,0.00018612,2]
[382350121,1756584084082,-430.8078122,0.00018612,2]
[382350123,1756584087650,-210.99176297,0.00018426,2]
[382350124,1756584091108,-182.61270686,0.00018426,2]
[382350126,1756584093937,-415.05159133,0.00018426,2]
[382350127,1756584097123,-159.46790154,0.00018426,2]
[382350129,1756584099628,-382.83097064,0.00018426,2]
[382350130,1756584102209,-302.57643837,0.00018426,2]
[382350131,1756584106829,-256.59356965,0.00018426,2]
[382350133,1756584109649,-223.55501808,0.00018426,2]
[382350134,1756584114123,-194.21757123,0.00018426,2]
[382350136,1756584117337,-155.18115816,0.00018426,2]
[382350137,1756584118950,-154.49997804,0.00018426,2]
[382350142,1756584124646,-205.81033716,0.00018426,2]
[382350146,1756584126759,-246.04334194,0.00018426,2]
[382350147,1756584128350,-348.74533357,0.00018426,2]
[382350151,1756584131721,-255.92962308,0.00018426,2]
[382350152,1756584133421,-196.38448002,0.00018426,2]
[382350154,1756584138013,-199.84912844,0.00018426,2]
[382350155,1756584139681,-257.53028611,0.00018426,2]
[382350156,1756584142273,154.606678,0.00024,30]
[382350157,1756584142548,-157.64962561,0.00018426,2]
[382350164,1756584209743,-214.0,0.00018426,2]
[382350165,1756584226800,394.211134,0.00013699,2]
[382350169,1756584269070,5000.0,0.00018011,2]
[382350172,1756584277388,4605.798866,0.00018011,2]
[382350173,1756584277411,394.201134,0.00018011,2]
[382350177,1756584292303,5000.0,0.00018011,2]
[382350178,1756584300920,2619.16785404,0.00018011,2]
[382350179,1756584315801,1986.64101196,0.00018011,2]
[382350180,1756584315824,1686.01552477,0.00018011,2]
[382350209,1756584487489,250.0,0.00017835,2]
[382350214,1756584631669,-245.73850312,0.00018791,2]
[382350231,1756584631869,-1082.27494397,0.00018791,2]
[382350234,1756584631882,-3671.98655291,0.00018791,2]
[382350236,1756584631891,-207.37846766,0.00018891,2]
[382350238,1756584631901,-1200.0,0.00018981,2]
[382350240,1756584631910,-300.0,0.00018981,2]
[382350242,1756584631920,-46083.6741899,0.00018982,2]
[382350244,1756584631929,-1884.0551193,0.00018991,2]
[382350246,1756584631938,-177.20686803,0.00019,2]
[382350248,1756584631947,-6633.3843606,0.00019019,2]
[382350250,1756584631956,-216.25802849,0.00019033,2]
[382350251,1756584631966,-160.0,0.00019033,2]
[382350252,1756584631976,-160.0,0.00019033,2]
[382350253,1756584631987,-160.0,0.00019033,2]
[382350254,1756584631996,-160.0,0.00019033,2]
[382350255,1756584632006,-160.0,0.00019034,2]
[382350256,1756584632015,-11361.55901651,0.00019034,2]
[382350257,1756584632024,-160.0,0.00019034,2]
[382350258,1756584632034,-845.75060209,0.00019034,2]
[382350259,1756584632043,-232.73020027,0.00019034,2]
[382350260,1756584632052,-160.0,0.00019034,2]
[382350261,1756584632062,-217.34977173,0.00019034,2]
[382350262,1756584632071,-425.65682239,0.00019034,2]
[382350263,1756584632081,-545.31106205,0.00019078,2]
[382350264,1756584632091,-1241.1616435,0.00019078,2]
[382350265,1756584632102,-545.31106202,0.00019147,2]
[382350266,1756584632113,-187.78006525,0.00019166,2]
[382350267,1756584632124,-160.108,0.00019168,2]
[382350268,1756584632134,-685.3,0.00019168,3]
[382350269,1756584632146,-344.6,0.00019168,3]
[382350270,1756584632157,-172.3,0.00019168,3]
[382350271,1756584632168,-516.91,0.00019168,3]
[382350272,1756584632179,-502.38628705,0.00019173,2]
[382350273,1756584632191,-500.0,0.00019173,2]
[382350274,1756584632202,-500.0,0.00019173,2]
[382350275,1756584632212,-500.0,0.00019173,2]
[382350276,1756584632223,-500.0,0.00019173,2]
[382350277,1756584632235,-180.27103502,0.00019173,2]
[382350278,1756584632245,-500.0,0.00019173,2]
[382350279,1756584632254,-500.0,0.00019173,2]
[382350280,1756584632268,-500.0,0.00019173,2]
[382350282,1756584632278,-500.0,0.00019173,2]
[382350283,1756584632288,-500.0,0.00019173,2]
[382350285,1756584632298,-500.0,0.00019173,2]
[382350287,1756584632308,-500.0,0.00019173,2]
[382350289,1756584632318,-500.0,0.00019173,2]
[382350291,1756584632328,-500.0,0.00019173,2]
[382350293,1756584632337,-500.0,0.00019173,2]
[382350295,1756584632347,-500.0,0.00019173,2]
[382350297,1756584632357,-504.15393391,0.00019173,2]
[382350299,1756584632367,-500.0,0.00019173,2]
[382350301,1756584632377,-500.0,0.00019173,2]
[382350303,1756584632386,-500.0,0.00019173,2]
[382350305,1756584632396,-226.98812925,0.00019173,2]
[382350307,1756584632405,-500.0,0.00019173,2]
[382350309,1756584632415,-500.0,0.00019173,2]
[382350312,1756584632426,-500.0,0.00019173,2]
[382350314,1756584632436,-623.3862052,0.00019178,2]
[382350316,1756584632446,-2493.54482081,0.00019178,2]
[382350318,1756584632455,-586.02854597,0.00019178,2]
[382350320,1756584632465,-480.0,0.00019178,2]
[382350322,1756584632474,-489.18650435,0.00019178,2]
[382350324,1756584632487,-480.0,0.00019178,2]
[382350326,1756584632496,-5604.86537097,0.00019178,2]
[382350328,1756584632505,-480.0,0.00019178,2]
[382350330,1756584632514,-480.0,0.00019178,2]
[382350332,1756584632523,-480.0,0.00019178,2]
[382350334,1756584632532,-480.0,0.00019178,2]
[382350336,1756584632541,-2341.77006968,0.00019178,2]
[382350338,1756584632550,-480.0,0.00019178,2]
[382350340,1756584632560,-480.0,0.00019178,2]
[382350342,1756584632569,-161.83628368,0.00019178,2]
[382350344,1756584632579,-480.0,0.00019178,2]
[382350346,1756584632588,-480.0,0.00019178,2]
[382350347,1756584632596,-604.41,0.00019178,2]
[382350349,1756584632605,-480.0,0.00019178,2]
[382350352,1756584632615,-480.0,0.00019178,2]
[382350353,1756584632624,-480.0,0.00019178,2]
[382350355,1756584632634,-742.81,0.00019178,2]
[382350358,1756584632643,-480.0,0.00019178,2]
[382350359,1756584632653,-480.0,0.00019178,2]
[382350362,1756584632665,-480.0,0.00019178,2]
[382350364,1756584632675,-1158.25,0.00019178,2]
[382350366,1756584632684,-480.0,0.00019178,2]
[382350368,1756584632694,-500.0,0.00019178,2]
[382350370,1756584632703,-480.62226163,0.00019178,2]
[382350372,1756584632712,-480.0,0.00019178,2]
[382350374,1756584632722,-480.0,0.00019178,2]
[382350376,1756584632735,-740.83,0.00019178,2]
[382350377,1756584632745,-480.0,0.00019178,2]
[382350380,1756584632755,-513.13,0.00019178,2]
[382350382,1756584632764,-513.13,0.00019178,2]
[382350384,1756584632773,-437.26932811,0.00019178,2]
[382350386,1756584632783,-480.0,0.00019178,2]
[382350388,1756584632793,-480.0,0.00019178,2]
[382350390,1756584632807,-480.0,0.00019178,2]
[382350392,1756584632816,-692.32,0.00019178,2]
[382350394,1756584632826,-480.0,0.00019178,2]
[382350396,1756584632835,-480.0,0.00019178,2]
[382350398,1756584632845,-484.8,0.00019178,2]
[382350400,1756584632854,-678.58,0.00019178,2]
[382350402,1756584632863,-480.0,0.00019178,2]
[382350404,1756584632872,-480.0,0.00019178,2]
[382350406,1756584632881,-480.0,0.00019178,2]
[382350408,1756584632891,-480.0,0.00019178,2]
[382350410,1756584632900,-480.0,0.00019178,2]
[382350412,1756584632910,-480.0,0.00019178,2]
[382350414,1756584632919,-1334.5,0.00019178,2]
[382350416,1756584632929,-480.0,0.00019178,2]
[382350418,1756584632938,-480.0,0.00019178,2]
[382350420,1756584632947,-480.0,0.00019178,2]
[382350421,1756584632956,-480.0,0.00019178,2]
[382350424,1756584632966,-480.0,0.00019178,2]
[382350425,1756584632975,-480.0,0.00019178,2]
[382350427,1756584632987,-480.0,0.00019178,2]
[382350430,1756584633005,-480.0,0.00019178,2]
[382350433,1756584633018,-527.55,0.00019178,2]
[382350435,1756584633028,-331.04958841,0.00019178,2]
[382350437,1756584633038,-480.0,0.00019178,2]
[382350439,1756584633049,-1077.52,0.00019178,2]
[382350441,1756584633059,-602.33,0.00019178,2]
[382350443,1756584633070,-480.0,0.00019178,2]
[382350445,1756584633080,-651.49,0.00019178,2]
[382350447,1756584633090,-617.06,0.00019178,2]
[382350449,1756584633100,-480.0,0.00019178,2]
[382350451,1756584633111,-823.1,0.00019178,2]
[382350453,1756584633121,-480.0,0.00019178,2]
[382350456,1756584633132,-480.0,0.00019178,2]
[382350458,1756584633142,-480.0,0.00019178,2]
[382350460,1756584633152,-480.0,0.00019178,2]
[382350462,1756584633162,-1846.39,0.00019178,2]
[382350464,1756584633172,-480.0,0.00019178,2]
[382350466,1756584633182,-745.67,0.00019178,2]
[382350468,1756584633191,-480.0,0.00019178,2]
[382350470,1756584633201,-480.0,0.00019178,2]
[382350472,1756584633212,-480.0,0.00019178,2]
[382350474,1756584633222,-1305.75,0.00019178,2]
[382350476,1756584633232,-480.0,0.00019178,2]
[382350478,1756584633242,-480.0,0.00019178,2]
[382350480,1756584633252,-480.0,0.00019178,2]
[382350482,1756584633262,-480.0,0.00019178,2]
[382350484,1756584633271,-554.22,0.00019178,2]
[382350486,1756584633281,-1753.02,0.00019178,2]
[382350488,1756584633291,-563.2,0.00019178,2]
[382350490,1756584633301,-792.18,0.00019178,2]
[382350492,1756584633312,-480.0,0.00019178,2]
[382350494,1756584633322,-1014.51,0.00019178,2]
[382350496,1756584633332,-755.88,0.00019178,2]
[382350498,1756584633342,-155.37708343,0.00019178,2]
[382350500,1756584633351,-2101.4,0.00019178,2]
[382350502,1756584633361,-1669.2,0.00019178,2]
[382350504,1756584633371,-480.0,0.00019178,2]
[382350506,1756584633381,-480.0,0.00019178,2]
[382350508,1756584633390,-705.41,0.00019178,2]
[382350511,1756584633400,-558.82127523,0.00019178,2]
[382350513,1756584633411,-480.0,0.00019178,2]
[382350515,1756584633420,-480.0,0.00019178,2]
[382350517,1756584633430,-480.0,0.00019178,2]
[382350519,1756584633440,-480.0,0.00019178,2]
[382350521,1756584633449,-480.0,0.00019178,2]
[382350523,1756584633459,-480.0,0.00019178,2]
[382350525,1756584633468,-639.96892625,0.00019178,2]
[382350681,1756584634971,-180.98825469,0.00018603,2]
[382350951,1756584637863,-4819.01174531,0.00018603,2]
[382350953,1756584637874,-1164.66107375,0.00019178,2]
[382350955,1756584637887,-480.0,0.00019178,2]
[382350957,1756584637897,-480.0,0.00019178,2]
[382350959,1756584637906,-1029.48,0.00019178,2]
[382350961,1756584637915,-490.94,0.00019178,2]
[382350963,1756584637925,-480.0,0.00019178,2]
[382350965,1756584637934,-577.46,0.00019178,2]
[382350967,1756584637944,-673.89,0.00019178,2]
[382350969,1756584637953,-151.0,0.00019178,2]
[382350971,1756584637962,-480.0,0.00019178,2]
[382350973,1756584637972,-3.71402569,0.00019178,2]
[382351189,1756584640127,-0.01169641,0.00019178,2]
[382351488,1756584642876,-1039.3442779,0.00019178,2]
[382351511,1756584643052,-728.6,0.00019178,2]
[382351514,1756584643074,-480.0,0.00019178,2]
[382351516,1756584643084,-1090.68,0.00019178,2]
[382351518,1756584643094,-480.0,0.00019178,2]
[382351520,1756584643103,-344.43800498,0.00019178,2]
[382351522,1756584643112,-1616.47,0.00019178,2]
[382351524,1756584643122,-480.0,0.00019178,2]
[382351526,1756584643131,-484.28,0.00019178,2]
[382351528,1756584643143,-480.0,0.00019178,2]
[382351529,1756584643152,-480.0,0.00019178,2]
[382351530,1756584643162,-577.53,0.00019178,2]
[382351531,1756584643171,-1604.62,0.00019178,2]
[382351532,1756584643180,-480.0,0.00019178,2]
[382351533,1756584643189,-2100.23,0.00019178,2]
[382351534,1756584643198,-815.17,0.00019178,2]
[382351535,1756584643208,-790.85,0.00019178,2]
[382351536,1756584643217,-890.24,0.00019178,2]
[382351537,1756584643226,-803.03,0.00019178,2]
[382351538,1756584643235,-480.0,0.00019178,2]
[382351539,1756584643246,-480.0,0.00019178,2]
[382351541,1756584643255,-480.0,0.00019178,2]
[382351542,1756584643265,-482.75008493,0.00019178,2]
[382351544,1756584643274,-599.94,0.00019178,2]
[382351545,1756584643283,-480.0,0.00019178,2]
[382351547,1756584643293,-480.0,0.00019178,2]
[382351549,1756584643302,-480.0,0.00019178,2]
[382351551,1756584643312,-480.0,0.00019178,2]
[382351553,1756584643321,-480.0,0.00019178,2]
[382351555,1756584643331,-601.43,0.00019178,2]
[382351557,1756584643341,-151.0,0.00019178,2]
[382351559,1756584643350,-480.0,0.00019178,2]
[382351561,1756584643360,-151.0,0.00019178,2]
[382351563,1756584643369,-480.0,0.00019178,2]
[382351565,1756584643379,-712.8,0.00019178,2]
[382351568,1756584643389,-480.0,0.00019178,2]
[382351569,1756584643398,-480.0,0.00019178,2]
[382351571,1756584643407,-589.78,0.00019178,2]
[382351573,1756584643416,-706.09,0.00019178,2]
[382351575,1756584643426,-480.0,0.00019178,2]
[382351577,1756584643435,-409.02875796,0.00019178,2]
[382351579,1756584643444,-801.63,0.00019178,2]
[382351581,1756584643454,-480.0,0.00019178,2]
[382351583,1756584643464,-480.0,0.00019178,2]
[382351585,1756584643474,-1287.67,0.00019178,2]
[382351587,1756584643484,-571.0,0.00019178,2]
[382351589,1756584643495,-480.0,0.00019178,2]
[382351591,1756584643504,-532.64,0.00019178,2]
[382351593,1756584643513,-521.07295653,0.00019178,2]
[382351595,1756584643522,-480.0,0.00019178,2]
[382351597,1756584643532,-574.96,0.00019178,2]
[382351599,1756584643542,-1581.15,0.00019178,2]
[382351601,1756584643551,-1073.51,0.00019178,2]
[382351603,1756584643560,-480.0,0.00019178,2]
[382351605,1756584643569,-480.0,0.00019178,2]
[382351608,1756584643581,-1000.0,0.00019178,2]
[382351610,1756584643591,-480.0,0.00019178,2]
[382351612,1756584643600,-1639.89,0.00019178,2]
[382351614,1756584643609,-480.0,0.00019178,2]
[382351616,1756584643619,-571.25,0.00019178,2]
[382351618,1756584643628,-480.0,0.00019178,2]
[382351620,1756584643638,-480.0,0.00019178,2]
[382351622,1756584643647,-480.0,0.00019178,2]
[382351624,1756584643657,-480.0,0.00019178,2]
[382351626,1756584643666,-485.11,0.00019178,2]
[382351628,1756584643675,-495.25,0.00019178,2]
[382351630,1756584643685,-480.0,0.00019178,2]
[382351631,1756584643694,-480.0,0.00019178,2]
[382351633,1756584643703,-716.6,0.00019178,2]
[382351635,1756584643713,-480.0,0.00019178,2]
[382351637,1756584643723,-480.0,0.00019178,2]
[382351639,1756584643732,-480.0,0.00019178,2]
[382351641,1756584643742,-480.0,0.00019178,2]
[382351643,1756584643752,-199.50972752,0.00019178,2]
[382351645,1756584643761,-480.0,0.00019178,2]
[382351647,1756584643771,-480.0,0.00019178,2]
[382351650,1756584643780,-520.35,0.00019178,2]
[382351652,1756584643793,-574.43,0.00019178,2]
[382351654,1756584643803,-480.0,0.00019178,2]
[382351656,1756584643814,-800.32,0.00019178,2]
[382351658,1756584643824,-480.0,0.00019178,2]
[382351660,1756584643833,-947.35,0.00019178,2]
[382351662,1756584643842,-480.0,0.00019178,2]
[382351664,1756584643854,-480.0,0.00019178,2]
[382351666,1756584643863,-614.96,0.00019178,2]
[382351667,1756584643872,-736.76,0.00019178,2]
[382351669,1756584643883,-654.75,0.00019178,2]
[382351671,1756584643892,-480.0,0.00019178,2]
[382351673,1756584643902,-596.76,0.00019178,2]
[382351675,1756584643911,-249.86391873,0.00019178,2]
[382351677,1756584643920,-831.94,0.00019178,2]
[382351679,1756584643930,-480.0,0.00019178,2]
[382351681,1756584643939,-480.0,0.00019178,2]
[382351704,1756584644155,-480.0,0.00019178,2]
[382351706,1756584644165,-645.09,0.00019178,2]
[382351708,1756584644175,-378.49022369,0.00019178,2]
[382351710,1756584644184,-480.0,0.00019178,2]
[382351712,1756584644195,-1568.34,0.00019178,2]
[382351714,1756584644205,-480.0,0.00019178,2]
[382351716,1756584644215,-805.07,0.00019178,2]
[382351718,1756584644225,-1596.26,0.00019178,2]
[382351720,1756584644234,-538.3,0.00019178,2]
[382351722,1756584644244,-247.91265431,0.00019178,2]
[382351724,1756584644253,-480.0,0.00019178,2]
[382351726,1756584644263,-480.0,0.00019178,2]
[382351728,1756584644272,-480.0,0.00019178,2]
[382351730,1756584644283,-703.71,0.00019178,2]
[382351732,1756584644293,-480.0,0.00019178,2]
[382351734,1756584644303,-480.0,0.00019178,2]
[382351736,1756584644313,-480.0,0.00019178,2]
[382351738,1756584644322,-480.0,0.00019178,2]
[382351740,1756584644332,-1759.43,0.00019178,2]
[382351741,1756584644341,-480.0,0.00019178,2]
[382351744,1756584644351,-480.0,0.00019178,2]
[382351746,1756584644361,-480.0,0.00019178,2]
[382351748,1756584644370,-480.0,0.00019178,2]
[382351750,1756584644383,-524.92,0.00019178,2]
[382351752,1756584644392,-480.0,0.00019178,2]
[382351753,1756584644402,-480.0,0.00019178,2]
[382351755,1756584644411,-636.9,0.00019178,2]
[382351758,1756584644420,-2002.16,0.00019178,2]
[382351760,1756584644430,-480.0,0.00019178,2]
[382351761,1756584644440,-480.0,0.00019178,2]
[382351763,1756584644451,-480.0,0.00019178,2]
[382351765,1756584644460,-1036.24,0.00019178,2]
[382351767,1756584644470,-496.87,0.00019178,2]
[382351769,1756584644479,-683.59,0.00019178,2]
[382351771,1756584644488,-480.0,0.00019178,2]
[382351773,1756584644499,-484.16,0.00019178,2]
[382351775,1756584644508,-480.62,0.00019178,2]
[382351777,1756584644517,-480.0,0.00019178,2]
[382351779,1756584644526,-480.0,0.00019178,2]
[382351781,1756584644535,-865.92,0.00019178,2]
[382351784,1756584644545,-480.0,0.00019178,2]
[382351786,1756584644554,-1036.92,0.00019178,2]
[382351788,1756584644563,-480.0,0.00019178,2]
[382351790,1756584644572,-482.77809732,0.00019178,2]
[382351792,1756584644581,-480.0,0.00019178,2]
[382351794,1756584644591,-480.0,0.00019178,2]
[382351796,1756584644600,-1230.82,0.00019178,2]
[382351798,1756584644609,-480.0,0.00019178,2]
[382351800,1756584644618,-1839.86,0.00019178,2]
[382351802,1756584644627,-1131.18,0.00019178,2]
[382351804,1756584644636,-974.52,0.00019178,2]
[382351806,1756584644647,-1421.63,0.00019178,2]
[382351808,1756584644656,-1092.43,0.00019178,2]
[382351810,1756584644665,-480.0,0.00019178,2]
[382351812,1756584644675,-348.83441339,0.00019178,2]
[382351814,1756584644684,-712.68,0.00019178,2]
[382351816,1756584644693,-480.0,0.00019178,2]
[382351818,1756584644702,-480.0,0.00019178,2]
[382351820,1756584644711,-480.0,0.00019178,2]